bitfinex/quotes_BTCUSD_20251226
["timestamp","ask_amount","ask_price","bid_price","bid_amount"]
[1766711440496,0.73293,87329.0,87319.0,0.42724621]
[1766711440946,0.73293,87329.0,87320.0,0.06871254]
[1766711441243,0.73293,87329.0,87319.0,0.42724621]
[1766711441454,0.73293,87338.0,87328.0,0.03894485]
[1766711441607,0.00040129,87343.0,87338.0,0.000549]
[1766711441811,0.00040129,87343.0,87333.0,0.06870206]
[1766711441812,0.00040129,87343.0,87335.0,0.01145016]
[1766711442155,0.00040129,87343.0,87334.0,0.01145029]
[1766711442329,2.9e-07,87343.0,87340.0,0.0114495]
[1766711442532,0.00901559,87345.0,87340.0,0.0114495]
[1766711442733,0.00886859,87345.0,87341.0,0.01144937]
[1766711442951,0.00886859,87345.0,87340.0,0.0114495]
[1766711443258,0.02472812,87350.0,87334.0,0.22900523]
[1766711443462,0.02471209,87356.0,87342.0,0.20799]
[1766711443662,0.73293,87356.0,87343.0,0.01148]
[1766711443826,0.73293,87356.0,87343.0,0.010932]
[1766711444169,0.41579395,87360.0,87350.0,0.02749377]
[1766711444364,0.74766,87358.0,87343.0,0.010382]
[1766711444865,0.74801149,87358.0,87343.0,0.010382]
[1766711445244,0.74766,87357.0,87343.0,0.010382]
[1766711446015,0.74766,87357.0,87343.0,0.02183111]
[1766711446220,0.74766,87357.0,87343.0,0.23806111]
[1766711446471,0.74766,87357.0,87349.0,0.01144832]
[1766711446667,0.74766,87357.0,87348.0,0.01144845]
[1766711446967,0.74766,87357.0,87348.0,0.01035069]
[1766711447751,0.74766,87357.0,87347.0,0.41579395]
[1766711447955,0.74766,87357.0,87345.0,0.01144885]
[1766711448153,0.74766,87357.0,87347.0,0.41579395]
[1766711448475,0.74766,87357.0,87347.0,0.42724254]
[1766711448674,0.74766,87357.0,87347.0,0.01144859]
[1766711448826,0.00035149,87358.0,87347.0,0.01144859]
[1766711448827,1.49e-06,87358.0,87357.0,0.000549]
[1766711449021,1.49e-06,87358.0,87357.0,0.01148]
[1766711449220,1.49e-06,87358.0,87351.0,0.01144806]
[1766711449422,1.49e-06,87358.0,87356.0,0.03205403]
[1766711449975,0.00043928,87357.0,87356.0,0.03205403]
[1766711450180,2.8e-07,87357.0,87356.0,0.03205403]
[1766711450770,2.8e-07,87357.0,87356.0,0.03161503]
[1766711452419,2.8e-07,87357.0,87356.0,0.01148]
[1766711461172,2.8e-07,87357.0,87343.0,0.20268]
[1766711461421,0.70344,87354.0,87344.0,0.01148]
[1766711461584,0.70344,87354.0,87344.0,0.04353403]
[1766711462350,0.70344,87354.0,87346.0,0.01144872]
[1766711462550,0.70344,87354.0,87344.0,0.04353403]
[1766711462551,0.70344,87354.0,87345.0,0.01144885]
[1766711462952,0.70344,87354.0,87344.0,0.04353403]
[1766711465184,0.70344,87354.0,87337.0,0.06869934]
[1766711465185,0.70344,87354.0,87345.0,0.03205403]
[1766711466724,0.70344,87354.0,87330.0,0.21052081]
[1766711466725,0.76068032,87351.0,87330.0,0.21052081]
[1766711467012,0.70344,87334.0,87316.0,0.19907]
[1766711467347,0.70344,87334.0,87327.0,0.03205403]
[1766711470098,0.70344,87334.0,87321.0,0.01148]
[1766711470550,0.70344,87326.0,87317.0,0.00015]
[1766711470754,0.70336965,87326.0,87317.0,0.01163]
[1766711471105,0.70336965,87326.0,87317.0,0.00488328]
[1766711471757,0.70336965,87326.0,87317.0,0.00523328]
[1766711479145,0.7018,87333.0,87326.0,0.000549]
[1766711479383,0.7018,87333.0,87317.0,0.00523328]
[1766711480810,0.01148,87334.0,87317.0,0.00523328]
[1766711480811,0.7018,87331.0,87317.0,0.00523328]
[1766711487206,0.7018,87329.0,87317.0,0.00523328]
[1766711489085,0.7018,87329.0,87309.0,0.01145357]
[1766711489086,0.7018,87311.0,87291.0,0.22754]
[1766711489261,0.7018,87303.0,87291.0,8.052e-05]
[1766711489463,0.7018,87303.0,87291.0,0.01156052]
[1766711489671,0.7018,87303.0,87291.0,0.02301645]
[1766711489979,0.7018,87303.0,87292.0,0.0114558]
[1766711490183,0.7018,87303.0,87297.0,0.01145514]
[1766711490386,0.70125,87303.0,87298.0,0.01145501]
[1766711490592,0.70125,87303.0,87297.0,0.01145514]
[1766711491156,0.70125,87303.0,87300.0,0.01145475]
[1766711491366,0.18496648,87303.0,87301.0,0.05727311]
[1766711492176,0.16168455,87303.0,87293.0,0.05727813]
[1766711492376,0.16168455,87303.0,87293.0,0.01145567]
[1766711492803,0.16168455,87303.0,87296.0,0.01145527]
[1766711492982,0.16073381,87303.0,87295.0,0.0114554]
[1766711493438,0.16073381,87303.0,87297.0,0.01145514]
[1766711493837,0.16073381,87303.0,87295.0,0.06873187]
[1766711493838,0.16073381,87303.0,87296.0,0.01145527]
[1766711494002,0.16073381,87303.0,87297.0,0.01145514]
[1766711494400,0.7018,87309.0,87297.0,0.01145514]
[1766711495036,0.7018,87309.0,87296.0,0.01145527]
[1766711495200,0.7018,87309.0,87297.0,0.01145514]
[1766711495414,0.7018,87309.0,87296.0,0.01145527]
[1766711495830,0.7018,87309.0,87297.0,0.01145514]
[1766711496031,0.7018,87309.0,87298.0,0.01145501]
[1766711496216,0.7018,87309.0,87296.0,0.01145527]
[1766711496416,0.7018,87309.0,87297.0,0.01145514]
[1766711497358,0.7018,87309.0,87299.0,0.01145488]
[1766711497512,0.7018,87309.0,87298.0,0.0687297]
[1766711497703,0.7018,87309.0,87300.0,0.06872845]
[1766711497896,0.7018,87309.0,87299.0,0.01145488]
[1766711498336,0.7018,87309.0,87299.0,0.06872883]
[1766711498517,0.7018,87309.0,87300.0,0.01145475]
[1766711500227,0.7018,87309.0,87301.0,0.01145462]
[1766711500428,0.7018,87309.0,87303.0,0.01145436]
[1766711500825,0.7018,87309.0,87304.0,0.01145422]
[1766711501031,0.7018,87309.0,87303.0,0.01145436]
[1766711501860,0.7018,87309.0,87304.0,0.01145422]
[1766711501861,0.70172963,87309.0,87304.0,0.01145422]
[1766711502028,0.70172963,87309.0,87303.0,0.01145436]
[1766711502429,0.70172963,87309.0,87302.0,0.01145449]
[1766711503009,0.7018,87319.0,87298.0,0.01148]
[1766711503202,0.7018,87336.0,87326.0,0.01145134]
[1766711503337,0.71328,87336.0,87326.0,0.01145134]
[1766711503677,0.71328,87336.0,87329.0,0.01145094]
[1766711504026,0.71328,87336.0,87326.0,0.06870792]
[1766711504465,0.71328,87336.0,87327.0,0.01145121]
[1766711504672,0.71328,87336.0,87328.0,0.01145108]
[1766711506143,0.71328,87336.0,87327.0,0.01145121]
[1766711506361,0.71328,87336.0,87329.0,0.01145094]
[1766711506575,0.00015,87337.0,87331.0,0.01145068]
[1766711506764,0.00015,87337.0,87330.0,0.01145081]
[1766711507156,0.00015,87337.0,87329.0,0.01145094]
[1766711507750,0.00015,87337.0,87330.0,0.01145081]
[1766711508171,0.00015,87337.0,87334.0,0.01145029]
[1766711508394,7.96e-05,87337.0,87334.0,0.01145029]
[1766711509373,0.01148,87350.0,87338.0,0.7877286]
[1766711509573,0.00035149,87350.0,87338.0,0.7877286]
[1766711509772,0.00035149,87350.0,87340.0,0.0114495]
[1766711510124,0.00035149,87350.0,87339.0,0.01144963]
[1766711510531,0.00035149,87350.0,87338.0,0.71903]
[1766711510689,0.00035149,87350.0,87341.0,0.01144937]
[1766711511329,0.00035149,87350.0,87340.0,0.0114495]
[1766711511709,0.00035149,87350.0,87341.0,0.01144937]
[1766711512118,0.00035149,87350.0,87342.0,0.01144924]
[1766711512497,0.00035149,87350.0,87341.0,0.05724688]
[1766711512720,0.00035149,87350.0,87343.0,0.05724501]
[1766711512919,1.49e-06,87350.0,87346.0,0.01144872]
[1766711513321,1.49e-06,87350.0,87345.0,0.01144885]
[1766711513529,1.49e-06,87350.0,87341.0,0.05724661]
[1766711513730,0.000549,87345.0,87341.0,0.06869598]
[1766711513938,1.49e-06,87350.0,87341.0,0.01144937]
[1766711514253,1.49e-06,87350.0,87338.0,0.71903]
[1766711514658,1.49e-06,87350.0,87339.0,0.01144963]
[1766711514842,0.42702645,87350.0,87328.0,0.01145108]
[1766711515041,0.01053076,87351.0,87326.0,0.71903]
[1766711515042,0.75371,87343.0,87329.0,0.02293094]
[1766711515245,0.75371,87350.0,87333.0,0.75157]
[1766711515671,0.75371,87350.0,87333.0,0.76302042]
[1766711516031,1.16947337,87350.0,87335.0,0.75157]
[1766711516249,1.16947337,87350.0,87335.0,0.76302016]
[1766711516450,1.16947337,87350.0,87340.0,0.0114495]
[1766711516666,0.01053076,87351.0,87342.0,0.01144924]
[1766711516867,0.01053076,87351.0,87341.0,0.01144937]
[1766711517609,0.01053076,87351.0,87341.0,0.76301937]
[1766711518039,0.01053076,87351.0,87342.0,0.01144924]
[1766711518236,0.01053076,87351.0,87341.0,0.76301937]
[1766711518422,0.01053076,87351.0,87341.0,0.75157]
[1766711518582,0.01053076,87351.0,87341.0,0.76301937]
[1766711518801,0.01053076,87351.0,87341.0,0.75157]
[1766711518974,0.01053076,87351.0,87341.0,0.76301937]
[1766711519173,0.01053076,87351.0,87341.0,0.75157]
[1766711520104,0.01053076,87351.0,87339.0,0.01144963]
[1766711520488,0.01053076,87351.0,87340.0,0.0114495]
[1766711520676,0.01053076,87351.0,87339.0,0.01144963]
[1766711521113,0.75920076,87351.0,87336.0,0.76305]
[1766711521324,0.000549,87339.0,87336.0,0.76305]
[1766711521874,0.74867,87349.0,87336.0,0.76305]
[1766711522739,0.74867,87349.0,87336.0,0.77450003]
[1766711522886,0.74867,87349.0,87337.0,0.0114499]
[1766711523081,0.74867,87349.0,87336.0,0.76305]
[1766711523518,0.74867,87349.0,87336.0,0.77450003]
[1766711523834,0.74867,87349.0,87336.0,0.76305]
[1766711524188,0.74867,87349.0,87336.0,0.77450003]
[1766711524388,0.74867,87349.0,87336.0,0.76305]
[1766711524623,0.00055,87336.0,87324.0,0.0114516]
[1766711524784,0.74922,87336.0,87329.0,1.49e-06]
[1766711524988,0.74867,87336.0,87329.0,1.49e-06]
[1766711525443,0.74867,87334.0,87308.0,0.01148]
[1766711525655,0.41576337,87320.0,87309.0,0.01148]
[1766711525844,1.16443337,87320.0,87309.0,0.01148]
[1766711526046,0.74867,87319.0,87309.0,0.01148]
[1766711526242,0.01148,87326.0,87309.0,0.43869694]
[1766711526421,0.76015,87326.0,87309.0,0.02293357]
[1766711527000,0.76015,87326.0,87309.0,0.01145357]
[1766711527214,0.76015,87326.0,87309.0,0.02293357]
[1766711527422,0.76015,87326.0,87310.0,0.01145344]
[1766711528066,0.76015,87326.0,87311.0,0.01145331]
[1766711528273,0.76015,87326.0,87310.0,0.01145344]
[1766711528474,0.76015,87326.0,87309.0,0.02293357]
[1766711528699,0.74867,87319.0,87309.0,0.01148]
[1766711531423,0.00055,87309.0,87308.0,8.052e-05]
[1766711531622,0.74867,87316.0,87308.0,0.01156052]
[1766711531826,0.74867,87316.0,87308.0,8.052e-05]
[1766711532352,0.74867,87316.0,87308.0,5.2e-07]
[1766711533332,0.748041,87316.0,87308.0,5.2e-07]
[1766711540413,0.68443,87319.0,87308.0,5.2e-07]
[1766711541253,0.68443,87317.0,87308.0,5.2e-07]
[1766711544942,0.01145265,87316.0,87306.0,5.2e-07]
[1766711545066,0.68443,87312.0,87306.0,5.2e-07]
[1766711545264,0.01145344,87310.0,87306.0,5.2e-07]
[1766711545482,0.68443,87309.0,87306.0,5.2e-07]
[1766711547104,0.69591,87309.0,87300.0,0.01145475]
[1766711547299,0.69591,87309.0,87300.0,0.01154733]
[1766711547700,0.69591,87309.0,87300.0,9.258e-05]
[1766711548389,0.68443,87309.0,87300.0,9.258e-05]
[1766711548629,0.69591,87309.0,87300.0,0.01154733]
[1766711548800,0.69591,87309.0,87300.0,9.258e-05]
[1766711549197,0.68443,87305.0,87294.0,0.01148]
[1766711549849,0.68443,87305.0,87293.0,0.01145567]
[1766711550321,0.68443,87305.0,87295.0,0.01138094]
[1766711550735,0.68443,87305.0,87292.0,0.0114558]
[1766711551105,0.68443,87305.0,87293.0,0.01145567]
[1766711551708,0.68443,87305.0,87292.0,0.0114558]
[1766711552038,0.68443,87305.0,87291.0,0.01145593]
[1766711552392,0.68443,87305.0,87292.0,0.0114558]
[1766711552841,0.68443,87305.0,87291.0,0.01145593]
[1766711553041,0.68443,87305.0,87290.0,0.49597935]
[1766711553246,0.68443,87305.0,87291.0,0.01145593]
[1766711554270,0.68443,87305.0,87292.0,0.0114558]
[1766711554674,0.68443,87305.0,87291.0,0.01145593]
[1766711554881,0.684338,87305.0,87295.0,0.0114554]
[1766711555013,0.684338,87305.0,87294.0,0.01145554]
[1766711555216,0.684338,87305.0,87293.0,0.01145567]
[1766711555829,0.684338,87305.0,87294.0,0.06873318]
[1766711556461,0.684338,87305.0,87296.0,0.01145527]
[1766711556758,0.684338,87305.0,87295.0,0.0114554]
[1766711556961,0.03205403,87304.0,87290.0,0.01145606]
[1766711557162,0.68443,87302.0,87288.0,0.70727]
[1766711557745,0.68443,87302.0,87290.0,0.41576337]
[1766711558364,0.68443,87302.0,87291.0,0.70727]
[1766711558562,0.68443,87302.0,87292.0,0.01148]
[1766711559847,0.00010541,87304.0,87293.0,0.70727]
[1766711560809,0.68443,87303.0,87292.0,0.01148]
[1766711562473,0.68443,87303.0,87292.0,0.0229358]
[1766711562911,0.00010541,87304.0,87293.0,0.01145567]
[1766711563104,0.00010541,87304.0,87292.0,0.7302058]
[1766711563454,0.00010541,87304.0,87295.0,0.0114554]
[1766711564050,0.00010541,87304.0,87294.0,0.01145554]
[1766711564250,0.00010541,87304.0,87293.0,0.01145567]
[1766711564451,0.00010541,87304.0,87294.0,0.01145554]
[1766711565014,0.00010541,87304.0,87292.0,0.7302058]
[1766711565238,0.00010541,87304.0,87294.0,0.01145554]
[1766711565444,0.70042,87303.0,87289.0,0.01145619]
[1766711565605,0.70042,87303.0,87286.0,0.02293659]
[1766711565813,0.70042,87303.0,87291.0,0.01145593]
[1766711566326,0.00010541,87304.0,87295.0,0.0114554]
[1766711566770,0.00010541,87304.0,87294.0,0.67629554]
[1766711566977,0.00010541,87304.0,87295.0,0.0114554]
[1766711567185,0.70042,87317.0,87297.0,0.66484]
[1766711567322,0.70042,87317.0,87300.0,0.41576337]
[1766711567323,0.01148,87313.0,87300.0,0.41576337]
[1766711567523,0.7119,87313.0,87300.0,0.41576337]
[1766711568771,0.7119,87313.0,87300.0,0.42721812]
[1766711568951,0.7119,87313.0,87300.0,0.41576337]
[1766711569161,0.4272155,87320.0,87305.0,0.01145409]
[1766711569162,0.70042,87320.0,87305.0,0.01145409]
[1766711569369,0.70042,87320.0,87305.0,0.68777409]
[1766711570190,0.02472793,87319.0,87306.0,0.66484]
[1766711570487,0.71187213,87320.0,87306.0,0.66484]
[1766711571255,0.02473083,87319.0,87306.0,0.66484]
[1766711572565,0.01145252,87317.0,87305.0,0.01148]
[1766711572937,0.69705,87314.0,87305.0,0.01148]
[1766711573119,0.69705,87308.0,87291.0,0.7194]
[1766711573331,0.69705,87308.0,87296.0,0.01148]
[1766711576686,0.69705,87308.0,87291.0,0.01156134]
[1766711576883,0.69705,87308.0,87292.0,0.01148]
[1766711582022,0.69705,87306.0,87292.0,0.01148]
[1766711583652,0.70850396,87306.0,87292.0,0.01148]
[1766711583849,0.69705,87304.0,87291.0,0.01158541]
[1766711584974,0.70850422,87304.0,87291.0,0.01158541]
[1766711585201,0.01145436,87303.0,87291.0,0.01158541]
[1766711585336,0.70850449,87302.0,87291.0,0.01158541]
[1766711585544,0.69705,87302.0,87291.0,0.01158541]
[1766711585995,0.01145501,87298.0,87282.0,0.73085436]
[1766711586182,0.69705,87296.0,87283.0,0.01148]
[1766711586386,0.69705,87296.0,87282.0,0.7194]
[1766711586687,0.69705,87296.0,87283.0,0.01148]
[1766711589752,0.69705,87296.0,87277.0,0.06874615]
[1766711589753,0.69705,87283.0,87261.0,0.7194]
[1766711589915,0.70850724,87281.0,87268.0,0.00050539]
[1766711590123,0.69705,87281.0,87268.0,0.00050539]
[1766711592062,0.69705,87281.0,87269.0,0.7194]
[1766711592241,0.696501,87281.0,87270.0,0.01145869]
[1766711593108,0.696501,87281.0,87271.0,0.01145856]
[1766711596077,0.696501,87281.0,87269.0,0.73085882]
[1766711596275,0.696501,87281.0,87271.0,0.01145856]
[1766711596865,0.696501,87281.0,87270.0,0.01145869]
[1766711597328,0.696501,87281.0,87269.0,0.73085882]
[1766711598707,0.696501,87281.0,87270.0,0.01145869]
[1766711598904,0.696501,87281.0,87269.0,0.7194]
[1766711599303,0.696501,87281.0,87268.0,0.00050539]
[1766711599757,0.7007,87279.0,87268.0,0.00050539]
[1766711600900,0.01148,87278.0,87268.0,0.00050539]
[1766711601136,0.7007,87277.0,87268.0,0.00050539]
[1766711601300,0.01148,87278.0,87268.0,0.00050539]
[1766711602092,0.01148,87278.0,87269.0,0.01145882]
[1766711602312,0.01148,87278.0,87269.0,0.69932882]
[1766711602497,0.06873587,87291.0,87279.0,0.68787]
[1766711602498,0.01148,87291.0,87279.0,0.68787]
[1766711602697,0.01148,87291.0,87281.0,0.68787]
[1766711604095,0.01148,87291.0,87282.0,0.01145711]
[1766711604297,0.7007,87307.0,87291.0,0.01145593]
[1766711604540,0.01148,87306.0,87292.0,0.68787]
[1766711605446,0.01145304,87313.0,87294.0,0.01145554]
[1766711605650,0.01148,87312.0,87295.0,0.68787]
[1766711606250,0.01148,87312.0,87295.0,0.6993254]
[1766711606449,0.01148,87311.0,87295.0,0.68787]
[1766711606653,0.01148,87311.0,87305.0,0.00020462]
[1766711606981,0.7007,87296.0,87278.0,0.01145764]
[1766711607138,0.7007,87296.0,87272.0,0.03205403]
[1766711607139,0.7007,87296.0,87281.0,0.69932724]
[1766711607340,0.7007,87296.0,87283.0,0.01145698]
[1766711607578,0.7007,87296.0,87283.0,0.69932698]
[1766711607872,0.7007,87296.0,87283.0,0.68787]
[1766711609277,0.0114554,87295.0,87283.0,0.68787]
[1766711609609,0.7007,87296.0,87280.0,0.4161321]
[1766711609810,0.7007,87296.0,87279.0,0.01148]
[1766711610033,0.7007,87296.0,87281.0,0.01145724]
[1766711610234,0.7007,87296.0,87280.0,0.01145737]
[1766711610523,0.7007,87296.0,87281.0,0.01145724]
[1766711611080,0.7007,87296.0,87285.0,0.01145672]
[1766711611283,0.7007,87296.0,87289.0,0.01145619]
[1766711612556,0.7007,87296.0,87290.0,0.01145606]
[1766711612906,0.7007,87296.0,87289.0,0.01145619]
[1766711613330,0.7007,87296.0,87290.0,0.01145606]
[1766711613723,0.7007,87296.0,87289.0,0.01145619]
[1766711614126,0.7007,87296.0,87290.0,0.01145606]
[1766711614321,0.06871972,87312.0,87286.0,0.06873901]
[1766711614322,0.01160278,87315.0,87296.0,0.01165927]
[1766711614528,0.71218,87310.0,87296.0,0.000204]
[1766711614737,0.71218,87310.0,87293.0,0.01145567]
[1766711615144,0.71218,87310.0,87292.0,0.0114558]
[1766711615343,0.71218,87310.0,87293.0,0.01145567]
[1766711615544,0.71218,87310.0,87294.0,0.01145554]
[1766711616148,0.0247026,87309.0,87294.0,0.01145554]
[1766711616368,0.7007,87308.0,87294.0,0.01145554]
[1766711617591,0.7007,87308.0,87295.0,0.0114554]
[1766711618411,0.7007,87308.0,87293.0,0.01145567]
[1766711619991,0.7007,87308.0,87294.0,0.01145554]
[1766711620197,0.7007,87308.0,87293.0,0.01145567]
[1766711620493,0.7007,87308.0,87292.0,0.06873442]
[1766711622605,0.7007,87308.0,87293.0,0.01145567]
[1766711623033,0.7007,87308.0,87294.0,0.01145554]
[1766711624191,0.7007,87308.0,87295.0,0.0114554]
[1766711624687,0.7007,87308.0,87296.0,0.01145527]
[1766711625086,0.7007,87308.0,87295.0,0.0114554]
[1766711625288,0.69792698,87308.0,87298.0,0.4161321]
[1766711625513,0.01158544,87311.0,87307.0,0.01145383]
[1766711625723,0.01158544,87311.0,87305.0,0.01145409]
[1766711625930,0.01158544,87311.0,87306.0,0.01145396]
[1766711626128,0.01158544,87311.0,87305.0,0.01145409]
[1766711626363,0.01158544,87311.0,87307.0,0.01145383]
[1766711626987,0.01158544,87311.0,87308.0,0.0114537]
[1766711627161,0.01158544,87311.0,87308.0,0.06872176]
[1766711627301,0.00010544,87311.0,87308.0,0.06872176]
[1766711627921,0.00015,87315.0,87308.0,0.06872176]
[1766711628542,0.00015,87315.0,87308.0,0.0114537]
[1766711629171,0.00015,87315.0,87306.0,0.01145396]
[1766711629373,0.00015,87315.0,87307.0,0.01145383]
[1766711629567,0.00015,87315.0,87306.0,0.01145396]
[1766711629928,0.00015,87315.0,87304.0,0.68955422]
[1766711630129,7.781e-05,87315.0,87306.0,0.01145396]
[1766711630332,7.781e-05,87315.0,87305.0,0.01145409]
[1766711630530,0.69197781,87315.0,87306.0,0.01145396]
[1766711630766,0.69197781,87315.0,87304.0,0.01145422]
[1766711630983,0.69197781,87315.0,87305.0,0.01145409]
[1766711631415,0.69197781,87315.0,87306.0,0.01145396]
[1766711632206,0.69197781,87315.0,87304.0,0.01145422]
[1766711632366,0.69197781,87315.0,87305.0,0.01145409]
[1766711632564,0.69197781,87315.0,87303.0,0.01145436]
[1766711632765,7.781e-05,87315.0,87307.0,0.01145383]
[1766711632967,7.781e-05,87315.0,87308.0,0.0114537]
[1766711633203,7.781e-05,87315.0,87310.0,0.01145344]
[1766711633404,7.781e-05,87315.0,87308.0,0.06872222]
[1766711633405,7.781e-05,87315.0,87309.0,0.01145357]
[1766711633687,7.781e-05,87315.0,87308.0,0.0114537]
[1766711634195,7.781e-05,87315.0,87307.0,0.01145383]
[1766711634621,7.781e-05,87315.0,87308.0,0.0114537]
[1766711634902,7.781e-05,87315.0,87307.0,0.01145383]
[1766711635106,7.781e-05,87315.0,87309.0,0.01145357]
[1766711636424,7.781e-05,87315.0,87308.0,0.0114537]
[1766711636626,7.781e-05,87315.0,87309.0,0.01145357]
[1766711636826,7.781e-05,87315.0,87310.0,0.01145344]
[1766711638052,7.781e-05,87315.0,87311.0,0.01145331]
[1766711638517,7.781e-05,87315.0,87310.0,0.01145344]
[1766711639019,7.781e-05,87315.0,87308.0,0.06872187]
[1766711639216,7.781e-05,87315.0,87308.0,0.0114537]
[1766711639619,7.781e-05,87315.0,87307.0,0.01145383]
[1766711639983,7.781e-05,87315.0,87306.0,0.01145396]
[1766711640201,7.781e-05,87315.0,87307.0,0.01145383]
[1766711640514,7.781e-05,87315.0,87308.0,0.0114537]
[1766711641527,7.781e-05,87315.0,87307.0,0.01145383]
[1766711641677,7.781e-05,87315.0,87306.0,0.06872362]
[1766711641879,7.781e-05,87315.0,87307.0,0.01145383]
[1766711642490,7.781e-05,87315.0,87306.0,0.06872362]
[1766711642728,7.781e-05,87315.0,87307.0,0.01145383]
[1766711642927,0.001099,87307.0,87300.0,0.42747702]
[1766711643130,0.001099,87307.0,87300.0,0.01158544]
[1766711643294,0.6919,87309.0,87300.0,0.01158544]
[1766711646255,7.781e-05,87315.0,87301.0,0.6781]
[1766711647012,0.01145304,87313.0,87301.0,0.677551]
[1766711647219,0.01145409,87305.0,87300.0,0.00010544]
[1766711647387,0.01145409,87305.0,87279.0,0.04584]
[1766711647388,0.6919,87294.0,87279.0,0.04584]
[1766711647680,0.6919,87292.0,87280.0,0.01148]
[1766711648231,0.6919,87292.0,87280.0,0.42747702]
[1766711648479,0.6919,87292.0,87280.0,0.01148]
[1766711648682,0.6919,87292.0,87281.0,0.01145724]
[1766711648882,0.6919,87292.0,87280.0,0.43893439]
[1766711649466,0.6919,87292.0,87280.0,0.42747702]
[1766711649691,0.6919,87292.0,87280.0,0.01148]
[1766711649983,0.6919,87292.0,87280.0,0.42747702]
[1766711653304,0.6919,87292.0,87280.0,0.41599702]
[1766711653856,0.6919,87292.0,87279.0,0.04584]
[1766711654691,0.6919,87292.0,87279.0,0.0457994]
[1766711655696,0.67519606,87290.0,87279.0,0.0457994]
[1766711655910,0.66374,87288.0,87279.0,0.0457994]
[1766711658420,0.66374,87288.0,87272.0,0.04351245]
[1766711658816,0.66374,87288.0,87272.0,0.03205403]
[1766711659643,0.66374,87288.0,87272.0,0.01145842]
[1766711660228,0.66374,87288.0,87273.0,0.01145829]
[1766711660431,0.66374,87288.0,87272.0,0.01145842]
[1766711660865,0.66374,87288.0,87273.0,0.01145829]
[1766711661624,0.66374,87288.0,87270.0,0.7361415]
[1766711661833,0.66374,87280.0,87270.0,0.00010539]
[1766711662386,0.663191,87280.0,87270.0,0.41610241]
[1766711662591,0.663191,87280.0,87271.0,0.0572928]
[1766711662811,0.6751958,87292.0,87273.0,0.01145829]
[1766711662999,0.66374,87290.0,87272.0,0.01145842]
[1766711663208,0.66374,87290.0,87277.0,0.01145777]
[1766711663422,0.66374,87290.0,87276.0,0.0114579]
[1766711663662,0.66374,87290.0,87277.0,0.01145777]
[1766711663872,0.66374,87290.0,87282.0,0.01145711]
[1766711663873,0.65268868,87290.0,87282.0,0.01145711]
[1766711664078,0.66374,87300.0,87283.0,0.66739]
[1766711664247,0.66374,87299.0,87283.0,0.66739]
[1766711664460,0.66374,87297.0,87283.0,0.66739]
[1766711664806,0.66228936,87292.0,87275.0,0.67884803]
[1766711665008,0.66228936,87292.0,87277.0,0.67884777]
[1766711665395,0.66228936,87292.0,87277.0,0.66739]
[1766711665984,0.66228936,87292.0,87280.0,0.41599702]
[1766711666347,0.66228936,87292.0,87277.0,0.67884777]
[1766711666546,0.66228936,87292.0,87280.0,0.41599702]
[1766711666947,0.66228936,87292.0,87277.0,0.66739]
[1766711668062,0.66228936,87292.0,87277.0,0.67884777]
[1766711669192,0.66228936,87292.0,87278.0,0.01145764]
[1766711669399,0.66228936,87292.0,87277.0,0.67884777]
[1766711669606,0.66228936,87292.0,87278.0,0.01145764]
[1766711670192,0.66228936,87292.0,87279.0,0.0114575]
[1766711670390,0.66228936,87292.0,87278.0,0.01145764]
[1766711670595,0.66228936,87292.0,87279.0,0.0114575]
[1766711670973,0.66228936,87292.0,87280.0,0.41599702]
[1766711672407,0.66228936,87292.0,87279.0,0.0114575]
[1766711672816,0.66228936,87292.0,87280.0,0.01145737]
[1766711673023,0.66228936,87292.0,87278.0,0.01145764]
[1766711673190,0.66228936,87292.0,87279.0,0.0114575]
[1766711673568,0.66228936,87292.0,87280.0,0.01145737]
[1766711674588,0.66228936,87292.0,87279.0,0.0114575]
[1766711675001,0.66374,87297.0,87280.0,0.67884737]
[1766711675183,0.66374,87297.0,87280.0,0.66739]
[1766711675525,0.66374,87297.0,87280.0,0.67884737]
[1766711676075,0.66374,87297.0,87280.0,0.66739]
[1766711676314,0.66374,87295.0,87280.0,0.67884737]
[1766711678235,0.66374,87295.0,87280.0,0.66739]
[1766711678539,0.66374,87295.0,87280.0,0.67884737]
[1766711678738,0.66374,87295.0,87280.0,0.66739]
[1766711679187,0.66374,87295.0,87280.0,0.67884737]
[1766711679943,0.66374,87295.0,87280.0,0.66739]
[1766711680102,0.66374,87293.0,87274.0,0.67884816]
[1766711680309,0.66374,87293.0,87275.0,0.67884803]
[1766711680513,0.66374,87293.0,87277.0,0.67884777]
[1766711680724,0.66374,87293.0,87279.0,0.0114575]
[1766711681119,0.66374,87293.0,87278.0,0.01145764]
[1766711681319,0.66374,87293.0,87277.0,0.66739]
[1766711681607,0.66374,87293.0,87277.0,0.67884777]
[1766711682386,0.66374,87293.0,87277.0,0.66739]
[1766711682712,0.0114554,87295.0,87277.0,0.67884777]
[1766711683413,0.66374,87295.0,87277.0,0.67884777]
[1766711683576,0.02475867,87294.0,87277.0,0.67884777]
[1766711683783,0.66374,87293.0,87277.0,0.66739]
[1766711684362,0.66374,87293.0,87278.0,0.01145764]
[1766711684564,0.66374,87293.0,87277.0,0.67884777]
[1766711685272,0.66374,87293.0,87278.0,0.01145764]
[1766711685518,0.66374,87293.0,87277.0,0.67884777]
[1766711686921,0.66374,87293.0,87277.0,0.66739]
[1766711687430,0.66374,87293.0,87277.0,0.67884777]
[1766711688337,0.66374,87293.0,87277.0,0.66739]
[1766711688572,0.66374,87293.0,87277.0,0.67884777]
[1766711688787,0.66374,87293.0,87278.0,0.01145764]
[1766711688948,0.66374,87293.0,87277.0,0.67884777]
[1766711689332,0.66374,87293.0,87278.0,0.01145764]
[1766711692079,0.66374,87293.0,87279.0,0.0114575]
[1766711692287,0.66374,87293.0,87280.0,0.42745439]
[1766711692711,0.66374,87293.0,87281.0,0.01145724]
[1766711692911,0.66374,87293.0,87280.0,0.48474096]
[1766711693070,0.66366959,87293.0,87280.0,0.48474096]
[1766711693483,0.66366959,87293.0,87282.0,0.01145711]
[1766711693688,0.66366959,87293.0,87281.0,0.01145724]
[1766711695452,0.66366959,87293.0,87282.0,0.01145711]
[1766711695948,0.66366959,87293.0,87281.0,0.01145724]
[1766711696444,0.66366959,87293.0,87280.0,0.42745439]
[1766711696646,0.66366959,87293.0,87281.0,0.01145724]
[1766711697399,0.66366959,87293.0,87282.0,0.01145711]
[1766711697912,0.66366959,87293.0,87281.0,0.01145724]
[1766711698318,0.66366959,87293.0,87277.0,0.66739]
[1766711698319,0.66366959,87293.0,87288.0,0.01145632]
[1766711698502,0.65796959,87293.0,87287.0,0.01145645]